fUSD/lending_fUSD_20250806
["ID","MTS","AMOUNT","RATE_DAILY","PERIOD"]
[377647338,1754477434664,-150.99,0.00034649,2]
[377647339,1754477434673,-866.27,0.00034649,90]
[377647340,1754477434683,-1236.3,0.00034651,2]
[377647341,1754477434693,-1000.0,0.00034661,2]
[377647342,1754477434703,-152.90617284,0.00034722,2]
[377647343,1754477434711,-398.34,0.00034723,2]
[377647344,1754477434721,-150.0,0.00034728,2]
[377647345,1754477434731,-3039.00174348,0.00034782,2]
[377647346,1754477434740,-2000.0,0.000348,2]
[377647347,1754477434750,-1664.9,0.00034807,2]
[377647348,1754477434760,-3631.1,0.00034822,2]
[377647349,1754477434769,-321.6,0.00034887,30]
[377647350,1754477434778,-152.0,0.00034887,4]
[377647351,1754477434788,-750.79,0.00034982,30]
[377647352,1754477434798,-750.79,0.00034982,30]
[377647353,1754477434807,-750.79,0.00034982,30]
[377647354,1754477434817,-1005.65,0.00034982,30]
[377647355,1754477434827,-1005.65,0.00034982,30]
[377647356,1754477434837,-738.33,0.00034982,30]
[377647357,1754477434849,-738.33,0.00034982,30]
[377647358,1754477434859,-511.89650792,0.00034982,30]
[377647359,1754477434869,-500.0,0.00034982,30]
[377647360,1754477434878,-500.0,0.00034982,30]
[377647361,1754477434888,-500.0,0.00034982,30]
[377647362,1754477434897,-500.0,0.00034982,30]
[377647363,1754477434907,-500.0,0.00034982,30]
[377647364,1754477434917,-500.0,0.00034982,30]
[377647365,1754477434926,-500.0,0.00034982,30]
[377647366,1754477434937,-500.0,0.00034982,30]
[377647367,1754477434946,-500.0,0.00034982,30]
[377647368,1754477434956,-500.0,0.00034982,30]
[377647369,1754477434965,-500.0,0.00034982,30]
[377647370,1754477434975,-201.0,0.0003523,2]
[377647371,1754477434988,-305.31,0.00035266,2]
[377647372,1754477434998,-3039.00174339,0.00035269,2]
[377647373,1754477435007,-150.0,0.00035334,4]
[377647374,1754477435016,-188.33,0.00035454,2]
[377647375,1754477435027,-318.10629047,0.000355,3]
[377647376,1754477435037,-150.0,0.00035616,15]
[377647377,1754477435057,-500.0,0.00035616,30]
[377647378,1754477435067,-506.06720206,0.000357,120]
[377647379,1754477435077,-3039.00174339,0.00035756,2]
[377647380,1754477435087,-1005.65,0.00035799,30]
[377647381,1754477435098,-738.33,0.00035799,30]
[377647382,1754477435108,-387.7628249,0.00035799,30]
[377647383,1754477435117,-277.82,0.00035816,2]
[377647384,1754477435126,-500.0,0.0003589,31]
[377647385,1754477435136,-500.0,0.00035902,120]
[377647386,1754477435145,-441.02,0.00035941,2]
[377647387,1754477435156,-166.66,0.00035953,2]
[377647388,1754477435166,-500.0,0.00036101,120]
[377647389,1754477435175,-500.0,0.00036164,32]
[377647390,1754477435184,-201.0,0.000362,2]
[377647391,1754477435193,-188.98,0.00036222,2]
[377647392,1754477435202,-3039.00174339,0.00036243,2]
[377647393,1754477435212,-301.25,0.000363,2]
[377647394,1754477435221,-504.36897901,0.00036412,5]
[377647395,1754477435230,-500.0,0.00036438,33]
[377647396,1754477435240,-151.58,0.00036524,60]
[377647397,1754477435250,-152.99,0.00036524,60]
[377647398,1754477435259,-153.26,0.00036524,60]
[377647399,1754477435269,-160.95,0.00036524,60]
[377647400,1754477435279,-305.31,0.00036541,2]
[377647401,1754477435288,-200.0,0.00036597,10]
[377647402,1754477435299,-750.79,0.00036599,30]
[377647403,1754477435309,-500.0,0.00036599,30]
[377647404,1754477435319,-500.0,0.00036599,30]
[377647405,1754477435328,-500.0,0.00036599,30]
[377647406,1754477435338,-151.58,0.00036624,60]
[377647407,1754477435349,-152.99,0.00036624,60]
[377647408,1754477435358,-153.26,0.00036624,60]
[377647409,1754477435368,-160.95,0.00036624,60]
[377647410,1754477435379,-500.0,0.00036712,34]
[377647411,1754477435389,-151.59027569,0.00036724,60]
[377647412,1754477435398,-152.99,0.00036724,60]
[377647413,1754477435408,-153.26,0.00036724,60]
[377647414,1754477435417,-160.95,0.00036724,60]
[377647415,1754477435427,-3039.00174339,0.0003673,2]
[377647416,1754477435437,-152.99,0.00036824,60]
[377647417,1754477435446,-153.26,0.00036824,60]
[377647418,1754477435456,-160.95,0.00036824,60]
[377647419,1754477435466,-152.99,0.00036924,60]
[377647420,1754477435476,-153.29,0.00036924,60]
[377647421,1754477435485,-160.99,0.00036924,60]
[377647422,1754477435495,-155.07297553,0.00036959,30]
[377647423,1754477435505,-155.07297553,0.00036959,30]
[377647424,1754477435514,-700.0,0.0003697,2]
[377647425,1754477435524,-800.0,0.00036985,7]
[377647426,1754477435533,-1200.0,0.00036985,7]
[377647427,1754477435542,-500.0,0.00036986,35]
[377647428,1754477435551,-447.87674216,0.00037,2]
[377647429,1754477435561,-3600.0,0.00037,38]
[377647430,1754477435570,-153.0,0.00037024,60]
[377647431,1754477435580,-157.0,0.00037167,5]
[377647432,1754477435590,-201.0,0.0003717,2]
[377647433,1754477435599,-3039.00174339,0.00037216,2]
[377647434,1754477435609,-662.16360925,0.00037254,120]
[377647435,1754477435619,-500.0,0.00037259,7]
[377647436,1754477435628,-500.0,0.0003726,36]
[377647437,1754477435637,-233.3,0.00037293,6]
[377647438,1754477435647,-441.02,0.00037311,2]
[377647439,1754477435656,-500.0,0.00037335,120]
[377647440,1754477435666,-500.0,0.00037335,120]
[377647441,1754477435676,-2500.0,0.00037359,2]
[377647442,1754477435685,-155.07297553,0.0003737,30]
[377647443,1754477435695,-155.07297553,0.0003737,30]
[377647444,1754477435705,-155.07297553,0.0003737,30]
[377647445,1754477435714,-866.38125618,0.00037382,2]
[377647446,1754477435723,-1005.65,0.00037399,30]
[377647447,1754477435733,-738.33,0.00037399,30]
[377647448,1754477435743,-700.0,0.0003747,2]
[377647449,1754477435752,-2000.0,0.000375,2]
[377647450,1754477435761,-274.0,0.000375,2]
[377647451,1754477435771,-750.79,0.00037531,30]
[377647452,1754477435780,-500.0,0.00037531,30]
[377647453,1754477435790,-500.0,0.00037531,30]
[377647454,1754477435799,-500.0,0.00037531,30]
[377647455,1754477435809,-500.0,0.00037534,37]
[377647456,1754477435818,-500.0,0.00037534,14]
[377647457,1754477435827,-500.0,0.00037534,14]
[377647458,1754477435837,-500.0,0.00037534,14]
[377647459,1754477435847,-500.0,0.00037534,14]
[377647460,1754477435856,-500.0,0.00037534,14]
[377647461,1754477435870,-511.24543468,0.00037534,14]
[377647462,1754477435880,-3362.0,0.0003754,2]
[377647463,1754477435889,-809.0,0.0003754,2]
[377647464,1754477435898,-956.0,0.0003754,2]
[377647465,1754477435908,-1252.0,0.0003754,2]
[377647466,1754477435917,-2024.0,0.0003754,2]
[377647467,1754477435926,-958.0,0.0003754,2]
[377647468,1754477435935,-1293.0,0.0003754,2]
[377647469,1754477435945,-564.0,0.0003754,2]
[377647470,1754477435954,-597.0,0.0003754,2]
[377647471,1754477435964,-892.0,0.0003754,2]
[377647472,1754477435973,-328.745,0.0003754,2]
[377647473,1754477435983,-4139.0,0.0003754,2]
[377647474,1754477435994,-277.82,0.00037546,2]
[377647475,1754477436004,-370.6,0.00037654,7]
[377647476,1754477436014,-3039.00174339,0.00037703,2]
[377647477,1754477436035,-800.0,0.00037807,7]
[377647478,1754477436044,-1200.0,0.00037807,7]
[377647479,1754477436053,-500.0,0.00037808,38]
[377647480,1754477436063,-305.31,0.00037816,2]
[377647481,1754477436073,-150.0,0.000379,2]
[377647482,1754477436084,-188.98,0.00037946,2]
[377647483,1754477436093,-447.0,0.00038,30]
[377647484,1754477436102,-600.0,0.00038,39]
[377647485,1754477436112,-370.6,0.00038016,7]
[377647486,1754477436121,-500.0,0.00038081,7]
[377647487,1754477436132,-500.0,0.00038082,39]
[377647488,1754477436142,-201.0,0.0003814,2]
[377647489,1754477436153,-3039.00174339,0.0003819,2]
[377647490,1754477436162,-300.0,0.0003822,2]
[377647491,1754477436172,-152.0,0.00038236,5]
[377647492,1754477436181,-300.0,0.00038246,2]
[377647493,1754477436190,-2208.55422634,0.00038264,60]
[377647494,1754477436199,-300.0,0.00038273,2]
[377647495,1754477436208,-150.0,0.00038321,2]
[377647496,1754477436218,-150.0,0.00038356,12]
[377647497,1754477436227,-500.0,0.00038356,40]
[377647498,1754477436236,-750.79,0.00038359,30]
[377647499,1754477436246,-750.79,0.00038359,30]
[377647500,1754477436256,-750.79,0.00038359,30]
[377647501,1754477436265,-207.9,0.00038359,30]
[377647502,1754477436275,-500.0,0.00038359,30]
[377647503,1754477436285,-500.0,0.00038359,30]
[377647504,1754477436294,-500.0,0.00038359,30]
[377647505,1754477436304,-150.0,0.00038366,30]
[377647506,1754477436313,-217.12657938,0.00038366,30]
[377647507,1754477436323,-150.0,0.00038366,30]
[377647508,1754477436333,-607.11025764,0.00038366,30]
[377647509,1754477436342,-370.6,0.00038377,7]
[377647510,1754477436351,-150.0,0.00038397,2]
[377647511,1754477436360,-150.0,0.00038418,2]
[377647512,1754477436370,-300.0,0.00038485,2]
[377647513,1754477436381,-150.0,0.00038512,2]
[377647514,1754477436391,-150.0,0.00038587,2]
[377647515,1754477436400,-500.0,0.00038595,30]
[377647516,1754477436411,-500.0,0.00038628,30]
[377647517,1754477436420,-800.0,0.00038629,7]
[377647518,1754477436430,-1200.0,0.00038629,7]
[377647519,1754477436440,-500.0,0.0003863,41]
[377647520,1754477436450,-300.0,0.00038634,2]
[377647521,1754477436458,-150.0,0.00038672,2]
[377647522,1754477436469,-3039.00174339,0.00038677,2]
[377647523,1754477436478,-269.0,0.0003868,2]
[377647524,1754477436487,-441.02,0.00038681,2]
[377647525,1754477436496,-150.0,0.0003869,2]
[377647526,1754477436506,-750.79,0.00038699,30]
[377647527,1754477436516,-500.0,0.00038699,30]
[377647528,1754477436525,-150.0,0.00038708,2]
[377647529,1754477436534,-370.6,0.00038738,7]
[377647530,1754477436545,-150.0,0.00038747,2]
[377647531,1754477436554,-300.0,0.00038763,2]
[377647532,1754477436564,-150.0,0.00038802,2]
[377647533,1754477436573,-150.0,0.00038841,2]
[377647534,1754477436582,-150.0,0.00038855,2]
[377647535,1754477436593,-150.0,0.00038861,2]
[377647536,1754477436602,-150.0,0.00038893,2]
[377647537,1754477436611,-300.0,0.00038894,2]
[377647538,1754477436620,-500.0,0.00038903,7]
[377647539,1754477436629,-612.4739944,0.00038904,42]
[377647540,1754477436639,-1180.01,0.00038907,2]
[377647541,1754477436648,-1180.01,0.00038907,2]
[377647542,1754477436658,-1180.01,0.00038907,2]
[377647543,1754477436667,-1180.01,0.00038907,2]
[377647544,1754477436676,-1180.01,0.00038907,2]
[377647545,1754477436685,-1180.01,0.00038907,2]
[377647546,1754477436695,-1180.01,0.00038907,2]
[377647547,1754477436704,-1180.01,0.00038907,2]
[377647548,1754477436714,-1180.01,0.00038907,2]
[377647549,1754477436723,-1180.01,0.00038907,2]
[377647550,1754477436733,-1180.01,0.00038907,2]
[377647551,1754477436742,-1180.01,0.00038907,2]
[377647552,1754477436751,-1180.01,0.00038907,2]
[377647553,1754477436760,-200.0,0.00038949,20]
[377647554,1754477436770,-1005.65,0.00038962,30]
[377647555,1754477436779,-738.33,0.00038962,30]
[377647556,1754477436789,-500.0,0.0003898,120]
[377647557,1754477436798,-1000.0,0.00038993,2]
[377647558,1754477436808,-150.0,0.00038998,2]
[377647559,1754477436817,-150.0,0.00038998,2]
[377647560,1754477436827,-500.0,0.00038999,30]
[377647561,1754477436836,-32768.66145089,0.00039,7]
[377647562,1754477436846,-150.0,0.00039006,2]
[377647563,1754477436855,-150.0,0.00039014,2]
[377647564,1754477436864,-300.0,0.00039024,2]
[377647565,1754477436873,-150.0,0.00039026,2]
[377647566,1754477436883,-150.0,0.00039029,2]
[377647567,1754477436892,-150.0,0.00039036,2]
[377647568,1754477436901,-150.0,0.00039037,2]
[377647569,1754477436910,-150.0,0.0003904,2]
[377647570,1754477436919,-150.0,0.00039042,2]
[377647571,1754477436928,-150.0,0.00039042,2]
[377647572,1754477436937,-150.0,0.00039049,2]
[377647573,1754477436946,-169.72096218,0.00039055,15]
[377647574,1754477436955,-5000.0,0.00039055,2]
[377647575,1754477436965,-150.0,0.00039059,2]
[377647576,1754477436974,-150.0,0.0003906,2]
[377647577,1754477436984,-150.0,0.00039065,2]
[377647578,1754477436996,-1578.61309442,0.00039065,2]
[377647579,1754477437006,-150.0,0.00039072,2]
[377647580,1754477437015,-2000.0,0.00039075,3]
[377647581,1754477437024,-2000.0,0.00039075,3]
[377647582,1754477437034,-1578.61309438,0.00039076,2]
[377647583,1754477437043,-169.72096215,0.00039082,15]
[377647584,1754477437052,-150.0,0.00039084,2]
[377647585,1754477437061,-150.0,0.00039086,2]
[377647586,1754477437071,-1578.61309438,0.00039087,2]
[377647587,1754477437080,-150.0,0.00039089,2]
[377647588,1754477437089,-150.0,0.0003909,2]
[377647589,1754477437099,-305.31,0.0003909,2]
[377647590,1754477437108,-150.0,0.00039092,2]
[377647591,1754477437117,-150.0,0.00039093,2]
[377647592,1754477437126,-150.0,0.00039094,2]
[377647593,1754477437135,-150.0,0.00039096,2]
[377647594,1754477437144,-1578.61309438,0.00039098,2]
[377647595,1754477437154,-150.0,0.00039099,2]
[377647596,1754477437165,-370.6,0.000391,7]
[377647597,1754477437175,-168.7454655,0.00039103,2]
[377647598,1754477437436,-2863.70849916,0.00039104,4]
[377647599,1754477437447,-150.0,0.00039104,2]
[377647600,1754477437456,-150.0,0.00039108,2]
[377647601,1754477437466,-150.0,0.00039109,2]
[377647602,1754477437475,-1578.61309438,0.00039109,2]
[377647603,1754477437486,-169.72096215,0.0003911,15]
[377647604,1754477437495,-201.0,0.0003911,2]
[377647605,1754477437504,-150.0,0.00039111,2]
[377647606,1754477437514,-150.0,0.00039114,2]
[377647607,1754477437523,-1578.61309438,0.0003912,2]
[377647608,1754477437533,-150.0,0.00039123,2]
[377647609,1754477437543,-150.0,0.00039127,2]
[377647610,1754477437553,-1578.61309438,0.00039131,2]
[377647611,1754477437563,-2863.70849916,0.00039132,4]
[377647612,1754477437573,-150.0,0.00039134,2]
[377647613,1754477437583,-169.72096215,0.00039137,15]
[377647614,1754477437592,-150.0,0.00039137,2]
[377647615,1754477437601,-150.0,0.00039142,2]
[377647616,1754477437612,-1578.61309438,0.00039142,2]
[377647617,1754477437621,-2863.70849916,0.00039145,4]
[377647618,1754477437630,-2863.70849916,0.00039145,4]
[377647619,1754477437640,-150.0,0.00039146,2]
[377647620,1754477437649,-1578.61309438,0.00039153,2]
[377647621,1754477437659,-11454.8339966,0.00039154,4]
[377647622,1754477437669,-5727.41699832,0.00039154,4]
[377647623,1754477437679,-393.16629179,0.00039155,2]
[377647624,1754477437689,-400.0,0.00039155,2]
[377647625,1754477437703,-400.0,0.00039155,2]
[377647626,1754477437713,-400.0,0.00039155,2]
[377647627,1754477437723,-400.0,0.00039155,2]
[377647628,1754477437733,-400.0,0.00039155,2]
[377647629,1754477437743,-209.52185211,0.00039155,2]
[377647630,1754477437753,-88774.963474,0.00039155,4]
[377647631,1754477437763,-1000.0,0.00039164,2]
[377647632,1754477437773,-19529.659,0.00039164,2]
[377647633,1754477437782,-150.0,0.00039164,2]
[377647634,1754477437792,-166.43368678,0.00039164,2]
[377647635,1754477437803,-1578.61309438,0.00039164,2]
[377647636,1754477437813,-3039.00174339,0.00039164,2]
[377647637,1754477437824,-152.90617284,0.00039164,2]
[377647638,1754477437835,-375.46091756,0.00039164,2]
[377647639,1754477437845,-374.78277233,0.00039164,2]
[377647640,1754477437855,-192.88872048,0.00039164,2]
[377647641,1754477437864,-2757.9154332,0.00039164,14]
[377647642,1754477437874,-500.0,0.00039164,30]
[377647644,1754477437883,-169.72096215,0.00039164,15]
[377647646,1754477437893,-173008.6498,0.00039165,2]
[377647648,1754477437902,-5706.8902,0.00039165,2]
[377647650,1754477437911,-10000.0,0.00039165,2]
[377647652,1754477437922,-11642.0236,0.00039165,30]
[377647654,1754477437931,-150.0,0.00039169,2]
[377647655,1754477437941,-150.0,0.00039169,2]
[377647657,1754477437950,-150.0,0.00039169,2]
[377647659,1754477437960,-150.0,0.00039171,2]
[377647661,1754477437969,-150.0,0.00039177,2]
[377647663,1754477437978,-500.0,0.00039178,60]
[377647665,1754477437991,-150.0,0.00039178,60]
[377647667,1754477438001,-500.0,0.00039178,2]
[377647669,1754477438014,-150.0,0.00039178,2]
[377647671,1754477438024,-500.0,0.00039178,2]
[377647673,1754477438036,-150.0,0.00039178,2]
[377647674,1754477438045,-150.0,0.00039178,2]
[377647676,1754477438055,-448.0,0.00039178,2]
[377647678,1754477438067,-831.0,0.00039178,2]
[377647680,1754477438077,-500.0,0.00039178,2]
[377647682,1754477438086,-500.0,0.00039178,2]
[377647685,1754477438096,-500.0,0.00039178,2]
[377647687,1754477438105,-150.92211011,0.00039178,2]
[377647689,1754477438115,-500.0,0.00039178,2]
[377647691,1754477438124,-150.0,0.00039178,120]
[377647693,1754477438133,-150.0,0.00039184,2]
[377647695,1754477438142,-150.0,0.0003919,2]
[377647697,1754477438152,-150.0,0.00039195,2]
[377647699,1754477438162,-396.65991858,0.00039199,2]
[377647701,1754477438171,-150.0,0.000392,2]
[377647703,1754477438181,-278.10964,0.000392,29]
[377647705,1754477438190,-150.0,0.00039204,2]
[377647707,1754477438199,-150.0,0.00039205,2]
[377647709,1754477438209,-150.0,0.00039206,2]
[377647711,1754477438219,-150.0,0.00039211,2]
[377647713,1754477438228,-150.0,0.00039211,2]
[377647715,1754477438238,-150.0,0.00039214,2]
[377647718,1754477438248,-150.0,0.00039214,2]
[377647720,1754477438257,-150.0,0.00039215,2]
[377647722,1754477438267,-150.0,0.00039216,2]
[377647724,1754477438276,-150.0,0.00039221,2]
[377647726,1754477438285,-150.0,0.00039221,2]
[377647728,1754477438295,-150.0,0.00039228,2]
[377647730,1754477438304,-150.0,0.00039231,2]
[377647732,1754477438314,-750.79,0.00039236,30]
[377647734,1754477438323,-750.79,0.00039236,30]
[377647736,1754477438332,-500.0,0.00039236,30]
[377647738,1754477438341,-500.0,0.00039236,30]
[377647740,1754477438351,-330.35035403,0.00039236,30]
[377647741,1754477438359,-1005.65,0.00039237,30]
[377647743,1754477438368,-1005.65,0.00039237,30]
[377647746,1754477438379,-738.33,0.00039237,30]
[377647747,1754477438389,-738.33,0.00039237,30]
[377647749,1754477438400,-553.97768296,0.00039243,4]
[377647752,1754477438410,-150.0,0.00039244,2]
[377647753,1754477438424,-500.0,0.00039246,120]
[377647755,1754477438434,-1000.0,0.00039247,120]
[377647758,1754477438444,-150.0,0.0003925,2]
[377647759,1754477438455,-150.0,0.00039251,2]
[377647762,1754477438465,-150.0,0.00039253,2]
[377647764,1754477438475,-7201.70987848,0.00039253,4]
[377647766,1754477438484,-178.26094198,0.00039254,2]
[377647768,1754477438494,-150.0,0.00039254,2]
[377647770,1754477438503,-150.0,0.00039255,2]
[377647772,1754477438512,-500.0,0.00039257,14]
[377647774,1754477438522,-500.0,0.00039257,14]
[377647776,1754477438532,-500.0,0.00039257,14]
[377647778,1754477438543,-500.0,0.00039257,14]
[377647780,1754477438553,-500.0,0.00039257,14]
[377647782,1754477438563,-500.0,0.00039257,14]
[377647784,1754477438572,-500.0,0.00039257,14]
[377647786,1754477438581,-500.0,0.00039257,14]
[377647788,1754477438590,-500.0,0.00039259,30]
[377647790,1754477438600,-150.0,0.0003926,7]
[377647792,1754477438609,-150.0,0.00039261,2]
[377647793,1754477438619,-977.51983087,0.00039262,2]
[377647796,1754477438629,-750.79,0.00039263,30]
[377647797,1754477438639,-750.79,0.00039263,30]
[377647799,1754477438649,-750.79,0.00039263,30]
[377647801,1754477438659,-750.79,0.00039263,30]
[377647804,1754477438669,-750.79,0.00039263,30]
[377647806,1754477438678,-750.91887589,0.00039263,30]
[377647807,1754477438688,-188.04,0.00039263,30]
[377647810,1754477438698,-500.0,0.00039263,30]
[377647811,1754477438707,-500.0,0.00039263,30]
[377647813,1754477438717,-500.0,0.00039263,30]
[377647815,1754477438726,-500.0,0.00039263,30]
[377647817,1754477438735,-500.0,0.00039263,30]
[377647819,1754477438745,-500.0,0.00039263,30]
[377647821,1754477438756,-500.0,0.00039263,30]
[377647823,1754477438767,-500.0,0.00039263,30]
[377647825,1754477438776,-500.0,0.00039263,30]
[377647827,1754477438785,-500.0,0.00039263,30]
[377647829,1754477438794,-382.96,0.00039263,30]
[377647831,1754477438804,-31717.80657855,0.00039263,2]
[377647833,1754477438814,-31717.80657855,0.00039264,2]
[377647835,1754477438823,-31717.80657855,0.00039264,2]
[377647837,1754477438834,-31717.80657855,0.00039264,2]
[377647839,1754477438846,-31717.80657855,0.00039264,2]
[377647841,1754477438855,-5234.7993008,0.00039264,21]
[377647843,1754477438864,-128819.03085954,0.00039264,2]
[377647845,1754477438873,-268060.15355209,0.00039264,2]
[377647848,1754477438890,-2298.95704457,0.00039264,2]
[377647850,1754477438901,-585.8379997,0.00039264,2]
[377647852,1754477438912,-15288.81714665,0.00039264,2]
[377647855,1754477438925,-524.49003042,0.00039264,2]
[377647923,1754477442265,-1888.0,0.00036,3]
[377647924,1754477442325,-406.94962774,0.00036,3]
[377647925,1754477442342,-1190.18492136,0.00036,3]
[377647926,1754477442352,-888.0,0.00036256,3]
[377647927,1754477442361,-865.0,0.0003754,2]
[377647928,1754477442372,-1776.0,0.00038496,3]
[377647929,1754477442384,-888.0,0.00038985,3]
[377647930,1754477442394,-29876.25973156,0.00039264,2]
[377647937,1754477443380,-6073.0,0.0003454,2]
[377647938,1754477443391,-4119.515625,0.0003754,2]
[377647939,1754477443472,-1953.484375,0.0003754,2]
[377647940,1754477443483,-770.31767616,0.00039264,2]
[377647941,1754477446302,-158.0,0.00036101,5]
[377647942,1754477446311,-888.0,0.000365,3]
[377647944,1754477446321,-339.67296045,0.0003874,3]
[377647952,1754477446380,-258.09440305,0.0003874,3]
[377647973,1754477446582,-1178.2326365,0.0003874,3]
[377647975,1754477446593,-461.48825064,0.00039264,2]
[377648206,1754477448967,-888.0,0.0003504,3]
[377648208,1754477448976,-1776.0,0.0003728,3]
[377648210,1754477448988,-150.0,0.00039038,2]
[377648212,1754477448998,-150.0,0.00039051,2]
[377648214,1754477449007,-150.0,0.00039074,2]
[377648216,1754477449017,-131.8696633,0.00039203,2]
[377648220,1754477449047,-18.1303367,0.00039203,2]
[377648222,1754477449057,-311059.09598712,0.00039264,2]
[377648225,1754477449085,-317698.96767704,0.00039264,2]
[377648228,1754477449097,-385.47304823,0.00039264,2]
[377648232,1754477449141,-3285.15416186,0.00039264,2]
[377648233,1754477449154,-3816.384063,0.00039264,2]
[377648235,1754477449165,-6857.82100739,0.00039264,2]
[377648239,1754477989531,160.47,0.00013699,2]
[377648243,1754478516704,250.0,0.00015,2]
[377648244,1754478517774,300.0,0.00017,2]
[377648296,1754478632944,-350.0,0.00019,2]
[377648297,1754478632954,-268.02,0.00025434,2]
[377648298,1754478632963,-160.47,0.00026027,2]
[377648299,1754478632973,-268.02,0.00027164,2]
[377648300,1754478632982,-268.02,0.00028895,2]
[377648301,1754478632991,-268.02,0.00030625,2]
[377648302,1754478633001,-400.0,0.00030912,2]
[377648303,1754478633011,-1200.0,0.00030912,2]
[377648304,1754478633021,-197.16,0.00030913,2]
[377648305,1754478633031,-4346.25099318,0.00030913,2]
[377648306,1754478638288,-759.41015997,0.0002488,7]
[377648307,1754478638299,-888.0,0.00029395,3]
[377648309,1754478638309,-240.58984003,0.00030913,2]
[377654011,1754479274442,159.15,0.00013699,2]
[377654012,1754479538913,2019.6575553,9e-05,2]
[377654013,1754479564548,1821.1924447,8e-05,2]
[377654014,1754479564576,1487.81,8e-05,2]
[377654016,1754479635973,2851.19681472,0.00015,2]
[377654018,1754479722467,9160.759999,0.000151,2]
[377654054,1754479832399,-657.62537937,0.0001899,2]
[377654055,1754479832411,-309.86462063,0.0001899,2]
[377654056,1754479832420,-321.92491025,0.0001899,2]
[377654057,1754479832431,-645.56508975,0.0001899,2]
[377654058,1754479832444,-1200.0,0.00018998,2]
[377654059,1754479832454,-300.0,0.00018998,2]
[377654060,1754479832463,-300.0,0.00018998,2]
[377654061,1754479832472,-168.40384001,0.00018999,2]
[377654062,1754479832482,-500.0,0.00018999,2]
[377654063,1754479832492,-193.52865187,0.00018999,2]
[377654064,1754479832501,-191.31665794,0.00018999,2]
[377654065,1754479832511,-500.0,0.00018999,2]
[377654067,1754479832521,-500.0,0.00018999,2]
[377654069,1754479832531,-25.12324448,0.00018999,2]
[377654072,1754479832625,-474.87675552,0.00018999,2]
[377654073,1754479832635,-58.76347045,0.00018999,2]
[377654074,1754479832983,-441.23652955,0.00018999,2]
[377654075,1754479832993,-539.84422781,0.00018999,2]
[377654076,1754479833003,-169.56635228,0.00018999,2]
[377654077,1754479833014,-396.47838647,0.00018999,2]
[377654078,1754479833024,-146.31395754,0.00018999,2]
[377654079,1754479833038,-353.68604246,0.00018999,2]
[377654080,1754479833047,-357.96563498,0.00018999,2]
[377654081,1754479833057,-500.0,0.00018999,2]
[377654082,1754479833066,-500.0,0.00018999,2]
[377654083,1754479833076,-500.0,0.00018999,2]
[377654084,1754479833085,-473.22120993,0.00018999,2]
[377654085,1754479833096,-299.19668601,0.00018999,2]
[377654086,1754479833105,-500.0,0.00018999,2]
[377654087,1754479833115,-500.0,0.00018999,2]
[377654088,1754479833124,-500.0,0.00018999,2]
[377654089,1754479833135,-500.0,0.00018999,2]
[377654090,1754479833144,-500.0,0.00018999,2]
[377654091,1754479833154,-500.0,0.00018999,2]
[377654093,1754479833163,-500.0,0.00018999,2]
[377654094,1754479833172,-500.0,0.00018999,2]